fUSD/lending_fUSD_20240813
["ID","MTS","AMOUNT","RATE_DAILY","PERIOD"]
[334800185,1723585842897,-2249.2204718,0.00010997,2]
[334800189,1723585842909,-2066.50432452,0.00010997,2]
[334800190,1723585842918,-135493.84398004,0.00011,2]
[334800192,1723585842930,-1016.89946502,0.00011,2]
[334800193,1723585842941,-3455.39202086,0.00011,2]
[334800195,1723585842954,-583.9850169,0.00011,2]
[334800197,1723585842967,-7122.54390561,0.00011,2]
[334800199,1723585842979,-1720.07733724,0.00011,2]
[334800201,1723585842993,-1777.7292,0.00011,2]
[334800202,1723585843005,-638.44387146,0.00011,2]
[334800204,1723585843016,-10164.41652515,0.00011,2]
[334800206,1723585843028,-294.90795002,0.00011,2]
[334800207,1723585843039,-682.875,0.00011,2]
[334800209,1723585843050,-3804.28083584,0.00011,2]
[334800212,1723585843061,-884.16644664,0.00011,2]
[334800215,1723585843076,-285.24212946,0.00011,2]
[334800218,1723585843087,-41374.91738175,0.00011,2]
[334800221,1723585843099,-2843.51779656,0.00011,2]
[334800224,1723585843111,-21256.29782865,0.00011,2]
[334800226,1723585843122,-6126.0276,0.00011,2]
[334800227,1723585843134,-2750.59999996,0.00011,2]
[334800228,1723585843148,-24929.11631104,0.00011,2]
[334800229,1723585843161,-3001510.54472235,0.00011,2]
[334800231,1723585843173,-417515.93093922,0.00011,2]
[334800232,1723585843184,-253.44497898,0.00011,2]
[334800233,1723585843196,-345.91147168,0.00011,2]
[334800234,1723585843206,-504.152,0.00011,2]
[334800235,1723585843221,-135326.47412993,0.00011,2]
[334800236,1723585843232,-586.519,0.00011,2]
[334800241,1723585843243,-327.86180807,0.00011,2]
[334800245,1723585843254,-422.75068075,0.00011,2]
[334800248,1723585843267,-1335.93812631,0.00011,2]
[334800336,1723585843682,-1243.9391314,0.00011,2]
[334800337,1723585843693,-360.80937151,0.00011,2]
[334800338,1723585843705,-1387.61799971,0.00011,2]
[334800339,1723585843716,-4336.95767507,0.00011,2]
[334800340,1723585843758,-3383.00529059,0.00011,2]
[334800341,1723585843768,-152614.36700401,0.00011,2]
[334800342,1723585843780,-384.34999965,0.00011,2]
[334800343,1723585843791,-9250.7235472,0.00011,2]
[334800360,1723585845000,-470.39356303,0.00011,2]
[334800361,1723585845014,-11591.31318506,0.00011,2]
[334800362,1723585845035,-327.12129972,0.00011,2]
[334800363,1723585845046,-43220.78802545,0.00011,2]
[334800364,1723585845058,-105142.54175216,0.00011,2]
[334800365,1723585845070,-55548.75971001,0.00011,2]
[334800390,1723585846360,-547.84176427,0.00011,2]
[334800395,1723585846391,-739.0765,0.00011,2]
[334800399,1723585846420,-484.86668259,0.00011,2]
[334800401,1723585846431,-1031.19781314,0.00011,2]
[334800402,1723585846442,-660.32229313,0.00011,2]
[334800403,1723585846458,-2870.16842939,0.00011,2]
[334800404,1723585846470,-1259.0643412,0.00011,2]
[334800405,1723585846481,-16926.06985481,0.00011,2]
[334800406,1723585846493,-620.1702649,0.00011,2]
[334800407,1723585846556,-684.17957245,0.00011,2]
[334800408,1723585846589,-3366.4468124,0.00011,2]
[334800409,1723585846619,-16116.7258984,0.00011,2]
[334800410,1723585846649,-737.47537973,0.00011,2]
[334800413,1723585849360,250.0,8.906e-05,2]
[334800414,1723585849386,422.72,8.906e-05,2]
[334800415,1723585867037,404.0225,9.574e-05,2]
[334800416,1723585921354,595.90557673,9.574e-05,2]
[334800431,1723586331059,696.46,8.219e-05,2]
[334800432,1723586821134,362.29,9.573e-05,2]
[334800433,1723586923762,1000.0,9.615e-05,2]
[334800434,1723587011970,250.0,9.626e-05,2]
[334800440,1723587031441,-300.0,9.673e-05,2]
[334800441,1723587031451,-500.0,9.674e-05,2]
[334800443,1723587031460,-500.0,9.674e-05,2]
[334800444,1723587031470,-500.0,9.674e-05,2]
[334800445,1723587031481,-500.0,9.674e-05,2]
[334800446,1723587031492,-500.80080469,9.674e-05,2]
[334800447,1723587031501,-175.69822379,9.674e-05,2]
[334800448,1723587031511,-1306.93,9.713e-05,2]
[334800449,1723587031522,-1148.36,9.717e-05,2]
[334800450,1723587031531,-4917.78,9.809e-05,2]
[334800451,1723587031540,-2106.1,9.858e-05,2]
[334800452,1723587031550,-150.0,9.888e-05,2]
[334800453,1723587031561,-4648.75,9.9e-05,2]
[334800454,1723587031570,-24639.92761173,9.952e-05,2]
[334800455,1723587031579,-150.0,0.00010024,2]
[334800456,1723587031588,-150.0,0.00010025,2]
[334800457,1723587031597,-343.24,0.00010025,2]
[334800458,1723587031606,-2792.22,0.00010025,2]
[334800459,1723587031616,-188.55,0.0001009,2]
[334800460,1723587031625,-150.0,0.00010162,2]
[334800461,1723587031635,-150.0,0.000103,2]
[334800462,1723587031643,-6096.13,0.00010391,2]
[334800463,1723587031653,-150.99,0.00010391,2]
[334800464,1723587031662,-150.99,0.00010391,2]
[334800465,1723587031671,-499.99,0.00010391,2]
[334800466,1723587031680,-2649.14,0.00010391,2]
[334800467,1723587031689,-150.0,0.00010437,2]
[334800468,1723587031698,-696.46,0.00010476,2]
[334800469,1723587031707,-500.0,0.00010496,2]
[334800470,1723587031716,-150.0,0.00010574,2]
[334800471,1723587031726,-420.0,0.0001064,2]
[334800472,1723587031735,-150.0,0.00010712,2]
[334800473,1723587031745,-362.29,0.00010769,2]
[334800474,1723587031754,-1000.0,0.00010817,2]
[334800475,1723587031764,-150.0,0.00010849,2]
[334800476,1723587031773,-1468.6771,0.0001089,2]
[334800477,1723587031783,-1000.0,0.000109,2]
[334800478,1723587031792,-297.2478,0.000109,2]
[334800479,1723587031801,-2677.7899,0.000109,2]
[334800480,1723587031810,-1929.2724,0.000109,2]
[334800481,1723587031819,-1057.9973,0.000109,2]
[334800482,1723587031829,-1000.0,0.000109,2]
[334800483,1723587031838,-7950.87228898,0.000109,2]
[334800484,1723587031850,-1241.10441102,0.000109,2]
[334800485,1723587031859,-15.51118898,0.000109,2]
[334800486,1723587031870,-484.48881102,0.000109,2]
[334800487,1723587031879,-2333.91091298,0.000109,2]
[334800488,1723587031895,-495.79760989,0.000109,2]
[334800489,1723587031923,-19522.87417713,0.000109,2]
[334800490,1723587031933,-1268.73,0.000109,2]
[334800491,1723587031942,-174.45878736,0.000109,2]
[334800492,1723587031952,-6236.66251764,0.000109,2]
[334800493,1723587031961,-218.2970397,0.000109,2]
[334800494,1723587031970,-4521.44222044,0.000109,2]
[334800495,1723587031980,-174.90327436,0.000109,2]
[334800496,1723587031990,-150.0,0.00010959,2]
[334800497,1723587031999,-250.0,0.00010959,2]
[334800498,1723587032008,-524.98,0.00010959,2]
[334800499,1723587032018,-437.48,0.00010959,2]
[334800500,1723587032027,-364.57,0.00010959,2]
[334800501,1723587032036,-303.8,0.00010959,2]
[334800502,1723587032045,-253.17,0.00010959,2]
[334800503,1723587032054,-210.98,0.00010959,2]
[334800504,1723587032063,-175.81,0.00010959,2]
[334800505,1723587032072,-879.09,0.00010959,2]
[334800506,1723587032081,-2000.0,0.00010959,2]
[334800507,1723587032091,-274.4076759,0.00010986,2]
[334800508,1723587032101,-946.1157538,0.00010997,2]
[334800509,1723587032110,-2003.7572484,0.00010997,2]
[334800510,1723587032119,-168.05434729,0.00010997,2]
[334800511,1723587032129,-4253.91414343,0.00011,2]
[334800512,1723587032143,-540.98763376,0.00011,2]
[334800513,1723587032155,-8610.4235858,0.00011,2]
[334800514,1723587032166,-266.95294903,0.00011,2]
[334800515,1723587032177,-5556.70632967,0.00011,2]
[334800516,1723587032188,-602.64321668,0.00011,2]
[334800517,1723587032210,-13654.40578453,0.00011,2]
[334800518,1723587032222,-1000.5000036,0.00011,2]
[334800519,1723587032259,-2066.72528739,0.00011,2]
[334800523,1723587037530,-622.21983407,0.00011,2]
[334800524,1723587037541,-2919.9,0.00011,2]
[334800525,1723587037551,-1780.0858619,0.00011,2]
[334800526,1723587037572,-2509.29808744,0.00011,2]
[334800527,1723587037624,-1042.82955653,0.00011,2]
[334800528,1723587037646,-1659.66309036,0.00011,2]
[334800529,1723587037667,-575.94544963,0.00011,2]
[334800530,1723587037687,-12070.76033853,0.00011,2]
[334800531,1723587037707,-20002.1778,0.00011,2]
[334800532,1723587037727,-30842.74014036,0.00011,2]
[334800533,1723587037764,-570.55999995,0.00011,2]
[334800534,1723587037785,-872.70324396,0.00011,2]
[334800535,1723587037799,-282.29427162,0.00011,2]
[334800536,1723587037820,-754.9956438,0.00011,2]
[334800537,1723587037839,-403.42498287,0.00011,2]
[334800538,1723587037878,-776.18302584,0.00011,2]
[334800541,1723587037896,-262.37960576,0.00011,2]
[334800548,1723587037953,-5049.79999996,0.00011,2]
[334800551,1723587037971,-5391.42561149,0.00011,2]
[334800554,1723587037995,-568.94985213,0.00011,2]
[334800557,1723587038017,-453.30570109,0.00011,2]
[334800623,1723587040267,-385.66261705,0.00011,2]
[334800624,1723587040279,-355.0671354,0.00011,2]
[334800625,1723587040290,-2607.20000779,0.00011,2]
[334800626,1723587040303,-656.14,0.00011,2]
[334800627,1723587040314,-703.90320097,0.00011,2]
[334800628,1723587040326,-606.43908688,0.00011,2]
[334800629,1723587040348,-43396.33147046,0.00011,2]
[334800630,1723587040360,-8144.42314774,0.00011,2]
[334800631,1723587040371,-281.186742,0.00011,2]
[334800632,1723587040391,-4086.26614854,0.00011,2]
[334800633,1723587040414,-539.06283141,0.00011,2]
[334800634,1723587040426,-1600.65,0.00011,2]
[334800635,1723587040436,-690.03922118,0.00011,2]
[334800636,1723587041488,-7395.0000005,0.00011,2]
[334800637,1723587041504,-4250.0,0.00011,2]
[334800638,1723587041515,-377.63072068,0.00011,2]
[334800639,1723587041526,-15324.43460978,0.00011,2]
[334800640,1723587041536,-124566.16841124,0.00011,2]
[334800641,1723587041549,-722894.86867063,0.00011,2]
[334800642,1723587041560,-3118.19999998,0.00011,2]
[334800643,1723587041571,-39212.85223734,0.00011,2]
[334800644,1723587041595,-254.25,0.00011,2]
[334800645,1723587041634,-505.2624392,0.00011,2]
[334800646,1723587041646,-752.06647049,0.00011,2]
[334800648,1723587042528,-296.18044634,0.00011,2]
[334800650,1723587042849,-632.52348141,0.00011,2]
[334800653,1723587042861,-9022.73171167,0.00011,2]
[334800656,1723587042872,-24935.22661887,0.00011,2]
[334800659,1723587042884,-10000.18950401,0.00011,2]
[334800662,1723587042895,-3087.7847,0.00011,2]
[334800665,1723587042906,-2180.37715403,0.00011,2]
[334800669,1723587042917,-737.43888161,0.00011,2]
[334800673,1723587042929,-31029.00000004,0.00011,2]
[334800676,1723587042940,-5507.36088862,0.00011,2]
[334800679,1723587042951,-1625.7938459,0.00011,2]
[334800795,1723587044344,-1334.91684426,0.00011,2]
[334800796,1723587044356,-494.33920324,0.00011,2]
[334800799,1723587046260,-1867.26480771,0.00011,2]
[334800800,1723587046300,-1522.00394,0.00011,2]
[334800801,1723587046311,-697.48293113,0.00011,2]
[334800802,1723587046322,-3095.56445462,0.00011,2]
[334800803,1723587046345,-1064.7,0.00011,2]
[334800804,1723587046356,-2363.95962,0.00011,2]
[334800805,1723587046367,-2584.4,0.00011,2]
[334800806,1723587046378,-4490.86171,0.00011,2]
[334800807,1723587046393,-1177.75924429,0.00011,2]
[334800808,1723587046421,-278.18369433,0.00011,2]
[334800809,1723587046434,-1595.07983397,0.00011,2]
[334800810,1723587046447,-856.2321508,0.00011,2]
[334800836,1723587121007,678.67,8.56e-05,2]
[334800840,1723587614214,644.73,8.219e-05,2]
[334800841,1723587647645,4482.2764,9.608e-05,2]
[334800851,1723588103276,612.49,8.219e-05,2]
[334800870,1723588232276,-500.0,9.674e-05,2]
[334800872,1723588232285,-500.0,9.674e-05,2]
[334800873,1723588232295,-231.85132041,9.674e-05,2]
[334800874,1723588232306,-269.7856843,9.674e-05,2]
[334800875,1723588232316,-42.05604148,9.674e-05,2]
[334800876,1723588232328,-457.94395852,9.674e-05,2]
[334800877,1723588232337,-211.47,9.878e-05,2]
[334800878,1723588232346,-150.0,9.898e-05,2]
[334800879,1723588232356,-13.9460598,9.899e-05,2]
[334800880,1723588232367,-696.93784984,9.899e-05,2]
[334800881,1723588232378,-551.29288503,9.899e-05,2]
[334800882,1723588232389,-2282.73546306,9.899e-05,2]
[334800883,1723588232401,-387.02289021,9.899e-05,2]
[334800884,1723588232413,-315.29707946,9.899e-05,2]
[334800885,1723588232424,-768.82318234,9.899e-05,2]
[334800886,1723588232465,-742.0,9.899e-05,2]
[334800887,1723588232477,-3440.07294455,9.899e-05,2]
[334800888,1723588232488,-415.09721781,9.899e-05,2]
[334800889,1723588232500,-308.807424,9.899e-05,2]
[334800890,1723588232511,-13977.9670039,9.899e-05,2]
[334800891,1723588232523,-600.0,9.899e-05,2]
[334800892,1723588232534,-1104.6,9.9e-05,2]
[334800893,1723588232543,-250.0,9.903e-05,2]
[334800894,1723588232553,-249.27725493,9.962e-05,2]
[334800895,1723588232563,-550.0,0.0001,2]
[334800896,1723588232573,-182.62,0.00010051,2]
[334800897,1723588232583,-400.0,0.00010201,2]
[334800898,1723588232592,-155.0,0.00010376,2]
[334800899,1723588232601,-612.49,0.00010473,2]
[334800900,1723588232611,-4611.0,0.000105,5]
[334800901,1723588232620,-499.99,0.00010678,2]
[334800902,1723588232630,-1112.10658177,0.0001078,2]
[334800903,1723588232640,-394.9792,0.000108,2]
[334800904,1723588232650,-12333.652,0.000109,2]
[334800905,1723588232659,-500.0,0.000109,2]
[334800906,1723588232669,-5494.88125743,0.000109,2]
[334800907,1723588232681,-719.56763967,0.000109,2]
[334800908,1723588232692,-582.92504737,0.000109,2]
[334800909,1723588232703,-323.745,0.000109,2]
[334800910,1723588232715,-2323.0117673,0.000109,2]
[334800911,1723588232726,-269.0000005,0.000109,2]
[334800912,1723588232738,-624.43044788,0.000109,2]
[334800913,1723588232753,-8857.72706137,0.000109,2]
[334800914,1723588232770,-29799.68797848,0.000109,2]
[334800915,1723588232779,-2904.8128,0.000109,2]
[334800916,1723588232790,-378.26817861,0.000109,2]
[334800917,1723588232801,-57011.64756581,0.000109,2]
[334800918,1723588232811,-1046.7527241,0.000109,2]
[334800919,1723588232822,-281.7937,0.000109,2]
[334800920,1723588232833,-300.73684348,0.000109,2]
[334800921,1723588232843,-715.15137906,0.000109,2]
[334800922,1723588232853,-2000.0,0.00010959,2]
[334800923,1723588232863,-846.04,0.00010959,2]
[334800924,1723588232873,-250.0,0.00010959,2]
[334800925,1723588232882,-6375.71033737,0.0001098,2]
[334800926,1723588232892,-23801.22539674,0.0001099,2]
[334800927,1723588232901,-534.88312049,0.00010999,2]
[334800928,1723588232911,-60000.0,0.00011,2]
[334800929,1723588232921,-123987.34780371,0.00011,2]
[334800930,1723588232941,-144902.96170197,0.00011,2]
[334800931,1723588232957,-2480.12615262,0.00011,2]
[334800933,1723588237789,-169.2,0.00010959,2]
[334800934,1723588237799,-133893.90763077,0.00011,2]
[334800935,1723588237808,-1087076.35670345,0.00011,2]
[334800936,1723588237820,-6045.54035109,0.00011,2]
[334800937,1723588237858,-1433.91078519,0.00011,2]
[334800938,1723588237871,-1756.33192736,0.00011,2]
[334800939,1723588237882,-1479.70572838,0.00011,2]
[334800940,1723588238042,-4608.6,0.00011,2]
[334800941,1723588238053,-651.2,0.00011,2]
[334800942,1723588238065,-1908.71029907,0.00011,2]
[334800943,1723588238075,-22140.40455578,0.00011,2]
[334800944,1723588238086,-7266.08921481,0.00011,2]
[334800957,1723588238361,-345.0,0.00011,2]
[334800961,1723588241257,-1072.68059859,0.0001078,2]
[334800962,1723588241267,-315.28918597,0.00011,2]
[334800963,1723588241288,-26626.67049458,0.00011,2]
[334800964,1723588241308,-327.902261,0.00011,2]
[334800965,1723588241336,-299.75719039,0.000109,2]
[334800966,1723588241349,-316.06940488,0.000109,2]
[334800967,1723588241372,-8427.05784559,0.000109,2]
[334800968,1723588241381,-1376954.57214825,0.00011,2]
[334800969,1723588241391,-4179473.27090876,0.00011,2]
[334800970,1723588241401,-372.08019945,0.00011,2]
[334800971,1723588241411,-484.07119856,0.00011,2]
[334800972,1723588241420,-1011120.96936645,0.00011,2]
[334800973,1723588241432,-1617.3920438,0.00011,2]
[334800974,1723588241462,-412.377,0.00011,2]
[334800975,1723588241490,-575.79509782,0.00011,2]
[334800992,1723588243566,-1149.44775671,0.00011,2]
[334800993,1723588245020,-29555.5312692,0.00011,2]
[334800994,1723588245081,-608.522095,0.00011,2]
[334800995,1723588245093,-289.34499,0.00011,2]
[334800996,1723588245105,-407.97,0.00011,2]
[334801025,1723588563656,595.14,8.317e-05,2]
[334801032,1723589052172,565.38,8.219e-05,2]
[334801045,1723589431313,227.74801183,8.219e-05,2]
[334801057,1723589432742,-290.05974808,9.674e-05,2]
[334801058,1723589432752,-5.36965192,9.674e-05,2]
[334801059,1723589432763,-494.63034808,9.674e-05,2]
[334801060,1723589432773,-500.0,9.674e-05,2]
[334801061,1723589432782,-500.0,9.674e-05,2]
[334801062,1723589432791,-1211.93355993,9.674e-05,2]
[334801063,1723589432800,-6817.1,9.898e-05,2]
[334801064,1723589432809,-253.9,9.9e-05,2]
[334801065,1723589432819,-552.3,9.915e-05,2]
[334801066,1723589432828,-520.0,9.937e-05,2]
[334801067,1723589432837,-150.0,9.945e-05,2]
[334801068,1723589432847,-485.65497579,9.962e-05,2]
[334801069,1723589432857,-1290.03332855,9.962e-05,2]
[334801070,1723589432866,-7577.72096623,9.962e-05,2]
[334801071,1723589432875,-291.36870266,9.962e-05,2]
[334801072,1723589432884,-871.55601316,9.962e-05,2]
[334801073,1723589432893,-425.83516653,9.962e-05,2]
[334801074,1723589432902,-155.0,9.962e-05,2]
[334801075,1723589432911,-14346.73058769,9.962e-05,2]
[334801076,1723589432921,-693.09243413,9.962e-05,2]
[334801077,1723589432930,-550.0,0.0001,2]
[334801078,1723589432939,-299.96327378,0.0001,2]
[334801079,1723589432949,-162.71643941,0.0001,2]
[334801080,1723589432958,-449.54781075,0.0001,2]
[334801081,1723589432968,-413.11934723,0.0001,2]
[334801082,1723589432977,-170.49309143,0.0001,2]
[334801083,1723589432986,-1050.60325905,0.0001,2]
[334801084,1723589432995,-181.82632038,0.0001,2]
[334801085,1723589433005,-480.0,0.00010007,2]
[334801086,1723589433014,-170.17,0.00010035,2]
[334801087,1723589433023,-5955.2,0.00010335,2]
[334801088,1723589433032,-193.75,0.00010393,2]
[334801089,1723589433042,-565.38,0.00010474,2]
[334801090,1723589433051,-150.99,0.00010537,2]
[334801091,1723589433060,-150.0,0.00010727,2]
[334801092,1723589433069,-150.0,0.00010727,2]
[334801093,1723589433078,-150.0,0.00010727,2]
[334801094,1723589433088,-150.0,0.00010727,2]
[334801095,1723589433097,-150.0,0.00010727,2]
[334801096,1723589433106,-150.0,0.00010727,2]
[334801097,1723589433115,-150.0,0.00010727,2]
[334801098,1723589433129,-150.0,0.00010727,2]
[334801099,1723589433140,-150.0,0.00010727,2]
[334801100,1723589433149,-150.0,0.00010727,2]
[334801101,1723589433159,-1105.91853378,0.0001078,2]
[334801102,1723589433168,-1070.78841696,0.0001078,2]
[334801103,1723589433178,-4652.21085988,0.000108,2]
[334801104,1723589433199,-1247.37528844,0.000108,2]
[334801105,1723589433210,-557.1434,0.0001089,2]
[334801106,1723589433219,-150.0,0.00010899,2]
[334801107,1723589433228,-579.8764,0.000109,2]
[334801108,1723589433237,-1636.3138,0.000109,2]
[334801109,1723589433247,-330.98465631,0.000109,2]
[334801110,1723589433256,-300.73684348,0.000109,2]
[334801111,1723589433265,-763.34,0.00010959,2]
[334801112,1723589433275,-250.0,0.00010959,2]
[334801113,1723589433284,-150.0,0.00010959,2]
[334801114,1723589433293,-195.71,0.00010959,2]
[334801115,1723589433303,-93.30481177,0.00010959,2]
[334801119,1723589437969,-69.78518823,0.00010959,2]
[334801120,1723589437980,-815.48,0.00010959,2]
[334801121,1723589437990,-167.25085884,0.00010997,2]
[334801122,1723589438000,-570.67745058,0.00010999,2]
[334801123,1723589438009,-5987.86691467,0.00011,2]
[334801124,1723589438020,-1954.87549614,0.00011,2]
[334801125,1723589438095,-320.85635304,0.00011,2]
[334801126,1723589438107,-58821.0,0.00011,2]
[334801127,1723589438122,-55.88463955,0.00011,2]
[334801128,1723589438135,-1050.56070045,0.00011,2]
[334801151,1723589439936,-2502.04248184,0.00011,2]
[334801152,1723589439947,-910.38,0.00011,2]
[334801153,1723589440090,-545.2400469,0.00011,2]
[334801164,1723589443829,-607.4,0.00011,2]
[334801165,1723589443840,-1723.80973372,0.00011,2]
[334801166,1723589444843,-1364.2199562,0.00011,2]
[334801167,1723589444854,-833.87987711,0.00011,2]
[334801168,1723589444865,-1464.06406546,0.00011,2]
[334801169,1723589444876,-420.09340139,0.00011,2]
[334801170,1723589444895,-10051.40285941,0.00011,2]
[334801171,1723589444906,-12295.49214234,0.00011,2]
[334801172,1723589444917,-694.5375725,0.00011,2]
[334801173,1723589444947,-3939.92439593,0.00011,2]
[334801174,1723589444959,-935.898057,0.00011,2]
[334801175,1723589444970,-448.95942964,0.00011,2]
[334801186,1723589446154,-964.85629862,0.0001078,2]
[334801187,1723589446166,-69035.14370138,0.00011,2]
[334801188,1723589446181,-13109.52489308,0.00011,2]
[334801189,1723589446202,-362801.22520074,0.00011,2]
[334801196,1723589660176,547.62,8.643e-05,2]
[334801197,1723589701162,6041.74960874,8.643e-05,2]
[334801198,1723590207816,520.23,8.261e-05,2]
[334801213,1723590632209,-500.0,9.674e-05,2]
[334801214,1723590632219,-201.98544953,9.674e-05,2]
[334801215,1723590632228,-500.0,9.674e-05,2]
[334801216,1723590632238,-1619.75808668,0.00010013,2]
[334801217,1723590632247,-225.58411866,0.00010013,2]
[334801218,1723590632257,-199.27134754,0.00010013,2]
[334801219,1723590632266,-416.0,0.00010135,2]
[334801220,1723590632275,-473.4,0.00010143,2]
[334801221,1723590632284,-584.0,0.00010191,2]
[334801222,1723590632293,-203.12,0.00010196,2]
[334801223,1723590632303,-250.0,0.00010228,2]
[334801224,1723590632312,-170.17,0.000103,2]
[334801225,1723590632321,-536.22973338,0.00010476,2]
[334801226,1723590632330,-522.91773594,0.00010476,2]
[334801227,1723590632340,-520.23,0.00010525,2]
[334801228,1723590632349,-499.99,0.00010525,2]
[334801229,1723590632358,-499.99,0.0001078,2]
[334801230,1723590632367,-196.88,0.00010793,2]
[334801231,1723590632376,-1347.4624,0.000109,2]
[334801232,1723590632386,-289.61157428,0.000109,2]
[334801233,1723590632395,-174.83539434,0.000109,2]
[334801234,1723590632405,-250.0,0.00010959,2]
[334801235,1723590632414,-1100.59222612,0.00010999,2]
[334801236,1723590632424,-150.0,0.00010999,2]
[334801237,1723590632433,-580.0,0.00011,2]
[334801238,1723590632443,-47955.63896976,0.00011,2]
[334801239,1723590632453,-584392.33296407,0.00011,2]
[334801240,1723590638195,-2569328.29380968,0.00011,2]
[334801242,1723590638281,-1507.57772365,0.00011,2]
[334801243,1723590638304,-522.95955266,0.00011,2]
[334801244,1723590638496,-703.20536157,0.00011,2]
[334801245,1723590638518,-10231.82958382,0.00011,2]
[334801246,1723590638538,-61199.45422728,0.00011,2]
[334801247,1723590638554,-686.28443759,0.00011,2]
[334801263,1723590638759,-30687.70725279,0.00011,2]
[334801266,1723590638778,-20046.88647575,0.00011,2]
[334801269,1723590638798,-435.35854429,0.00011,2]
[334801272,1723590638818,-664.7658,0.00011,2]
[334801306,1723590641467,-1481.09417923,0.00011,2]
[334801307,1723590641488,-31971.56757775,0.00011,2]
[334801308,1723590641499,-3470.13415581,0.00011,2]
[334801321,1723590644914,-1321.69127506,0.00011,2]
[334801322,1723590644944,-2301.288471,0.00011,2]
[334801329,1723590646638,-150.0,0.00010736,2]
[334801331,1723590646652,-150.0,0.00010737,2]
[334801332,1723590646661,-150.0,0.00010752,2]
[334801333,1723590646671,-150.0,0.00010765,2]
[334801334,1723590646680,-150.0,0.00010778,2]
[334801335,1723590646690,-150.0,0.00010778,2]
[334801337,1723590646699,-150.0,0.00010805,2]
[334801339,1723590646709,-300.0,0.00010812,2]
[334801340,1723590646718,-150.0,0.00010819,2]
[334801342,1723590646730,-150.0,0.00010819,2]
[334801343,1723590646740,-150.0,0.00010832,2]
[334801344,1723590646750,-150.0,0.00010866,2]
[334801345,1723590646760,-150.0,0.00010887,2]
[334801346,1723590646769,-150.0,0.00010887,2]
[334801347,1723590646778,-150.0,0.0001089,2]
[334801348,1723590646798,-150.0,0.00010894,2]
[334801349,1723590646807,-150.0,0.00010904,2]
[334801350,1723590646817,-150.0,0.00010913,2]
[334801351,1723590646826,-150.0,0.00010939,2]
[334801352,1723590646836,-150.0,0.00010944,2]
[334801353,1723590646845,-150.0,0.00010974,2]
[334801354,1723590646854,-150.0,0.00010984,2]
[334801355,1723590646863,-150.0,0.00010996,2]
[334801356,1723590646872,-522.0,0.00011,2]
[334801357,1723590646881,-4718.8761939,0.00011,2]
[334801359,1723590761406,503.14,8.219e-05,2]
[334801368,1723591016325,9398.0,0.00027,120]
[334801369,1723591278309,477.98,8.219e-05,2]
[334801373,1723591771760,454.08,8.219e-05,2]
[334801389,1723591832871,-500.0,9.674e-05,2]
[334801390,1723591832881,-372.67905712,9.674e-05,2]
[334801391,1723591832892,-127.32094288,9.674e-05,2]
[334801392,1723591832901,-335.32,9.868e-05,2]
[334801393,1723591832913,-667.2,9.87e-05,2]
[334801394,1723591832923,-157.5,9.871e-05,2]
[334801395,1723591832933,-332.8,9.874e-05,2]
[334801396,1723591832942,-250.0,9.887e-05,2]
[334801397,1723591832952,-200.0,9.89e-05,2]
[334801398,1723591832961,-300.0,9.961e-05,2]
[334801399,1723591832974,-4123.77919218,9.962e-05,2]
[334801400,1723591832983,-550.0,0.0001,2]
[334801401,1723591832993,-454.08,0.00010469,2]
[334801402,1723591833001,-300.0,0.0001072,2]
[334801403,1723591833011,-150.0,0.00010726,2]
[334801404,1723591833021,-150.0,0.00010739,2]
[334801405,1723591833030,-150.0,0.00010746,2]
[334801406,1723591833040,-150.0,0.00010747,2]
[334801407,1723591833051,-150.0,0.00010756,2]
[334801408,1723591833061,-150.0,0.00010758,2]